bitfinex-derivatives/quotes_SOLF0:USTF0_20251119
["timestamp","ask_amount","ask_price","bid_price","bid_amount"]
[1763585674424,18.73589503,133.14,133.07,3.31]
[1763585674725,0.05717415,133.12,133.09,0.05518024]
[1763585675820,0.05717415,133.12,133.09,3.36518024]
[1763585678127,0.05717415,133.12,133.09,0.05518024]
[1763585679235,6.7692,133.11,133.09,0.05518024]
[1763585681137,0.05717415,133.12,133.09,3.15518024]
[1763585681438,0.05717415,133.12,133.09,0.05518024]
[1763585681828,6.82577415,133.12,133.09,0.05518024]
[1763585682335,0.05717415,133.12,133.09,0.05518024]
[1763585682630,0.05717415,133.12,133.09,3.15518024]
[1763585686741,0.05717415,133.12,133.09,0.05518024]
[1763585687036,0.05717415,133.12,133.09,3.15518024]
[1763585690243,0.05717415,133.12,133.09,0.05518024]
[1763585690930,6.7692,133.11,133.09,0.05518024]
[1763585692933,6.771,133.07,133.0,3.1]
[1763585693735,15.86,133.09,133.02,3.1]
[1763585693936,0.05195338,133.07,133.04,0.05417832]
[1763585694137,6.82325338,133.07,133.04,0.05417832]
[1763585694338,6.82325338,133.07,133.04,3.15417832]
[1763585694634,0.05195338,133.07,133.04,3.15417832]
[1763585697036,0.05195338,133.07,133.04,9.92647832]
[1763585697237,0.05195338,133.07,133.05,3.1]
[1763585699937,0.05195338,133.07,133.05,9.8718]
[1763585700241,1.30795106,133.15,133.06,108.4338]
[1763585700441,1.30795106,133.15,133.08,3.1]
[1763585700738,4.45232849,133.13,133.02,4.45232849]
[1763585700943,6.7688,133.12,133.05,3.1]
[1763585701143,15.86,133.14,133.05,3.1]
[1763585701335,0.04794459,133.11,133.08,3.15417198]
[1763585705538,15.86,133.18,133.1,3.1]
[1763585705743,10.62934905,133.21,133.1,3.1]
[1763585705946,1.30745966,133.19,133.1,3.1]
[1763585706244,1.30745966,133.19,133.13,3.1]
[1763585706546,8.07255966,133.19,133.13,3.1]
[1763585706747,0.03567693,133.17,133.15,0.05000012]
[1763585707448,0.03567693,133.17,133.15,3.15000012]
[1763585709345,6.764,133.21,133.16,3.25]
[1763585709546,17.16716499,133.22,133.16,3.25]
[1763585710045,6.7645,133.2,133.16,3.25]
[1763585710546,6.7645,133.2,133.17,3.29783357]
[1763585710852,6.7645,133.2,133.17,3.29822065]
[1763585711052,105.1848,133.25,133.17,3.29822065]
[1763585711247,1.30704225,133.23,133.17,3.25]
[1763585711451,106.51034225,133.23,133.2,0.05033821]
[1763585711645,15.86,133.27,133.2,3.30594947]
[1763585712152,105.1933,133.24,133.2,0.05594947]
[1763585712347,1.30664965,133.26,133.2,0.05594947]
[1763585712548,6.7635,133.22,133.2,0.05594947]
[1763585714051,105.1873,133.25,133.2,0.05594947]
[1763585714252,1.30664965,133.26,133.2,3.30594947]
[1763585715249,15.86,133.27,133.2,3.30594947]
[1763585715451,15.86,133.27,133.22,3.25]
[1763585715649,1.30655153,133.28,133.24,3.25]
[1763585716254,105.1417,133.31,133.24,3.25]
[1763585716455,105.1417,133.31,133.26,0.05275723]
[1763585716456,6.7604,133.28,133.26,0.05275723]
[1763585716651,105.2136,133.22,133.13,3.25]
[1763585716852,1.30625727,133.3,133.13,3.25]
[1763585717049,105.1708,133.27,133.17,3.25]
[1763585717256,105.1933,133.24,133.17,3.25]
[1763585717557,6.764,133.21,133.19,0.0556654]
[1763585718251,0.05275723,133.22,133.19,0.0556654]
[1763585718650,6.81625723,133.22,133.19,0.0556654]
[1763585719154,6.7642,133.21,133.19,0.0556654]
[1763585720244,6.7653,133.19,133.14,3.25]
[1763585720440,15.86,133.2,133.14,3.25]
[1763585720642,15.86,133.2,133.09,105.3073]
[1763585720643,105.233,133.19,133.11,3.25]
[1763585721052,6.7661,133.17,133.11,3.25]
[1763585721254,0.05567779,133.15,133.13,3.30681101]
[1763585721553,0.05567779,133.15,133.13,3.29972528]
[1763585721950,106.45785727,133.3,133.16,3.25]
[1763585722149,10.62934905,133.28,133.19,3.25]
[1763585722959,0.04981725,133.25,133.22,0.04969277]
[1763585723362,6.7625,133.24,133.22,0.04969277]
[1763585723957,121.11731725,133.25,133.16,3.25]
[1763585724157,121.0675,133.25,133.16,3.25]
[1763585724361,6.7637,133.22,133.16,3.25]
[1763585724559,105.1925,133.24,133.16,3.25]
[1763585724758,0.05583699,133.21,133.19,0.04995074]
[1763585725061,6.81983699,133.21,133.19,0.04995074]
[1763585725758,0.05583699,133.21,133.19,0.04995074]
[1763585726551,0.05583699,133.21,133.19,3.17995074]
[1763585726959,105.1945,133.24,133.19,0.04995074]
[1763585727360,6.7631,133.23,133.19,0.04995074]
[1763585727557,1.30625727,133.3,133.19,3.17995074]
[1763585727763,105.1952,133.24,133.06,3.13]
[1763585727958,105.2173,133.21,133.07,3.13]
[1763585728157,0.04660062,133.15,133.13,0.04982357]
[1763585728359,15.92,133.18,133.13,3.18457803]
[1763585728560,15.92,133.18,133.13,3.13]
[1763585729463,15.92,133.18,133.15,3.13]
[1763585730566,15.94,133.22,133.15,3.13]
[1763585730862,15.94,133.22,133.17,0.05234688]
[1763585731268,15.94,133.22,133.17,3.18234688]
[1763585731563,15.94,133.22,133.17,0.05234688]
[1763585731971,15.94,133.22,133.17,3.18234688]
[1763585733266,44.75175839,133.33,133.17,3.18234688]
[1763585733464,44.75175839,133.33,133.22,3.18272134]
[1763585733465,14.2,133.32,133.22,3.18272134]
[1763585733761,6.7592,133.31,133.25,3.18349309]
[1763585733961,6.7592,133.31,133.19,105.2285]
[1763585733962,14.2,133.32,133.26,3.18508602]
[1763585734171,14.2,133.32,133.28,3.1821495]
[1763585734359,15.5061347,133.32,133.28,0.0521495]
[1763585736473,14.2,133.32,133.28,3.1821495]
[1763585736769,105.054,133.42,133.28,3.1821495]
[1763585736770,1.30596315,133.35,133.28,3.1821495]
[1763585736961,1.30596315,133.35,133.3,0.05717913]
[1763585736962,105.1138,133.34,133.3,0.05717913]
[1763585737664,6.7583,133.32,133.3,0.05717913]
[1763585737864,106.41256315,133.35,133.3,0.05717913]
[1763585737865,1.30596315,133.35,133.3,0.05717913]
[1763585739073,2.03003734,133.45,133.3,3.08717913]
[1763585739263,6.76189309,133.4,133.35,0.05511546]
[1763585739468,6.76189309,133.4,133.36,0.0481348]
[1763585739970,13.51639309,133.4,133.36,0.0481348]
[1763585740168,6.7545,133.4,133.36,0.0481348]
[1763585740559,22.72189309,133.41,133.36,0.0481348]
[1763585741165,29.47589309,133.41,133.36,0.0481348]
[1763585741369,29.47589309,133.41,133.36,3.0781348]
[1763585741874,15.96,133.41,133.36,3.0781348]
[1763585742184,105.0076,133.48,133.36,3.0781348]
[1763585742484,6.76189309,133.41,133.32,3.03]
[1763585742780,6.7546,133.4,133.32,3.03]
[1763585742982,105.0663,133.4,133.32,3.03]
[1763585743581,0.05279595,133.37,133.35,0.04992974]
[1763585744976,1.30513051,133.43,133.35,3.07992974]
[1763585745283,15.96,133.44,133.36,3.03]
[1763585745482,22.72189309,133.44,133.36,3.03]
[1763585745784,15.96,133.44,133.36,3.03]
[1763585745983,15.96,133.44,133.39,0.05714478]
[1763585746578,105.043,133.43,133.39,0.05714478]
[1763585746984,111.81719309,133.42,133.39,0.05714478]
[1763585747186,15.96,133.44,133.39,3.08714478]
[1763585747489,3.33502103,133.45,133.39,3.08714478]
[1763585748988,2.03003734,133.45,133.39,3.08714478]
[1763585749489,2.03003734,133.45,133.4,3.03]
[1763585750384,2.03003734,133.45,133.39,3.08714478]
[1763585750990,2.03003734,133.45,133.4,3.03]
[1763585751395,2.03003734,133.45,133.41,3.03]
[1763585752196,6.76189309,133.55,133.46,3.03]
[1763585752388,6.76189309,133.54,133.49,0.04885522]
[1763585752585,104.9682,133.53,133.43,3.03]
[1763585752787,104.9649,133.53,133.47,0.05781586]
[1763585752994,104.9877,133.5,133.47,0.05781586]
[1763585753393,6.7499,133.49,133.47,0.05781586]
[1763585753892,22.74189309,133.51,133.47,0.05781586]
[1763585754088,127.72559309,133.51,133.47,0.05781586]
[1763585754293,104.9891,133.5,133.47,0.05781586]
[1763585754591,111.7455,133.49,133.47,0.05781586]
[1763585754793,104.9955,133.49,133.4,3.03]
[1763585754994,6.7509,133.47,133.4,3.03]
[1763585755191,105.0115,133.47,133.37,9.7857]
[1763585755394,129.04683214,133.46,133.37,3.03]
[1763585755689,0.05523775,133.43,133.4,0.05543813]
[1763585756781,0.05523775,133.43,133.4,3.08543813]
[1763585757389,0.05523775,133.43,133.4,0.05543813]
[1763585757688,6.76189309,133.42,133.4,0.05543813]
[1763585757993,0.05523775,133.43,133.4,0.05543813]
[1763585759095,0.05523775,133.43,133.4,3.08543813]
[1763585759497,0.59,133.55,133.4,3.08543813]
[1763585759795,0.59,133.51,133.42,3.03]
[1763585760297,16.57,133.51,133.42,3.03]
[1763585760496,0.59,133.5,133.45,0.05343508]
[1763585760691,0.59,133.46,133.38,3.03]
[1763585760900,0.54,133.45,133.38,3.03]
[1763585761193,6.7529,133.43,133.38,3.03]
[1763585761398,128.30389309,133.46,133.38,3.03]
[1763585761694,0.54,133.42,133.35,3.03]
[1763585761996,0.04975032,133.4,133.37,0.05236008]
[1763585762794,0.58975032,133.4,133.37,0.05236008]
[1763585763593,0.04975032,133.4,133.37,0.05236008]
[1763585764093,0.58975032,133.4,133.37,0.05236008]
[1763585764498,0.54,133.38,133.37,0.05236008]
[1763585764699,0.54,133.38,133.3,3.03]
[1763585765396,6.7559,133.37,133.3,9.7891]
[1763585765700,0.04952836,133.35,133.32,3.07772581]
[1763585766294,0.59,133.45,133.34,3.03]
[1763585766495,0.59,133.44,133.35,3.03]
[1763585766697,6.7535,133.42,133.35,3.03]
[1763585767094,0.59,133.44,133.37,3.03]
[1763585767295,0.05128421,133.42,133.39,3.08385741]
[1763585769402,0.66128421,133.42,133.39,0.05385741]
[1763585770304,0.61,133.41,133.31,3.3]
[1763585770701,16.59,133.41,133.31,3.3]
[1763585771104,6.7547,133.4,133.33,6.7575]
[1763585771402,0.0522754,133.38,133.35,3.34904992]
[1763585771907,118.5054,133.48,133.35,3.34904992]
[1763585771908,1.30495922,133.46,133.38,3.3]
[1763585772200,3.18,133.51,133.41,3.3]
[1763585772501,3.18,133.51,133.43,6.7524]
[1763585772708,3.18,133.51,133.44,3.3]
[1763585772898,0.05145342,133.49,133.46,0.05646686]
[1763585773409,0.05145342,133.49,133.48,3.3]
[1763585773598,5.44,133.54,133.48,3.3]
[1763585773990,2.26,133.54,133.48,10.0499]
[1763585774195,3.18,133.58,133.5,3.3]
[1763585774703,120.877,133.62,133.55,3.3]
[1763585774704,19.16,133.62,133.55,3.3]
[1763585775001,3.18,133.61,133.53,3.3]
[1763585775200,3.18,133.6,133.57,0.04854048]
[1763585775402,9.94189309,133.59,133.48,3.3]
[1763585775708,3.18,133.58,133.49,3.3]
[1763585775907,6.76189309,133.6,133.5,3.3]
[1763585776106,11.24521506,133.61,133.5,3.3]
[1763585776406,0.05624507,133.57,133.54,3.35780006]
[1763585776907,0.05624507,133.57,133.54,0.05780006]
[1763585777210,9.94189309,133.55,133.46,19.28]
[1763585777505,9.94189309,133.55,133.46,3.3]
[1763585777702,3.18,133.51,133.38,6.76189309]
[1763585777898,3.18,133.51,133.39,3.3]
[1763585778095,0.05133147,133.46,133.44,0.05076289]
[1763585778291,0.05531414,133.46,133.44,0.05076289]
[1763585778492,3.23531414,133.46,133.44,0.05076289]
[1763585778700,0.05531414,133.46,133.44,0.05076289]
[1763585779209,3.23531414,133.46,133.44,0.05076289]
[1763585779501,3.23531414,133.46,133.39,3.3]
[1763585780508,3.23531414,133.46,133.41,0.04905303]
[1763585780704,0.05531414,133.46,133.41,3.34905303]
[1763585783010,0.05531414,133.46,133.42,3.3]
[1763585783809,0.05531414,133.46,133.43,3.3]
[1763585784104,0.05531414,133.46,133.41,3.34905303]
[1763585784406,3.23531414,133.46,133.41,0.04905303]
[1763585784607,9.99720723,133.46,133.41,0.04905303]
[1763585784798,3.18,133.45,133.41,0.04905303]
[1763585787109,9.932,133.45,133.41,0.04905303]
[1763585787310,3.03,133.44,133.41,0.04905303]
[1763585788004,3.03,133.42,133.35,3.36]
[1763585788204,3.03,133.42,133.36,6.756]
[1763585788405,3.03,133.42,133.35,3.36]
[1763585788607,9.7834,133.42,133.35,3.36]
[1763585789011,9.7834,133.42,133.37,0.05180261]
[1763585789212,0.05454474,133.4,133.37,0.05180261]
[1763585789413,3.08454474,133.4,133.37,0.05180261]
[1763585789710,0.05454474,133.4,133.37,0.05180261]
[1763585790402,3.08454474,133.4,133.37,0.05180261]
[1763585792211,3.03,133.38,133.31,3.36]
[1763585792412,3.03,133.36,133.28,3.36]
[1763585792616,9.7869,133.35,133.28,3.36]
[1763585792810,3.03,133.35,133.28,3.36]
[1763585793209,3.0834167,133.33,133.3,0.05627322]
[1763585793815,3.03,133.31,133.25,3.36]
[1763585794410,3.03,133.3,133.23,6.7626]
[1763585794618,3.03,133.3,133.23,3.36]
[1763585794820,0.05323051,133.28,133.25,3.41007538]
[1763585795415,3.08323051,133.28,133.25,0.05007538]
[1763585796314,0.05323051,133.28,133.25,3.41007538]
[1763585796621,0.05323051,133.28,133.27,3.36]
[1763585797119,0.05323051,133.28,133.25,3.41007538]
[1763585797920,0.05323051,133.28,133.25,10.17167538]
[1763585798321,0.05323051,133.28,133.26,10.0012]
[1763585798919,0.05323051,133.28,133.26,3.24]
[1763585799622,105.1198,133.34,133.26,3.24]
[1763585799623,210.129,133.41,133.27,3.24]
[1763585799923,3.13,133.36,133.27,3.24]
[1763585800125,6.7569,133.35,133.29,6.7596]
[1763585800324,6.7569,133.35,133.27,3.24]
[1763585800628,0.04887479,133.32,133.3,0.04767705]
[1763585801122,3.17887479,133.32,133.3,0.04767705]
[1763585803126,9.93727479,133.32,133.3,0.04767705]
[1763585803332,3.13,133.31,133.3,0.04767705]
[1763585803931,0.04887479,133.32,133.3,0.04767705]
[1763585806037,3.17887479,133.32,133.3,0.04767705]
[1763585807035,9.93727479,133.32,133.3,0.04767705]
[1763585807836,0.04887479,133.32,133.3,0.04767705]
[1763585810540,3.13,133.31,133.23,3.24]
[1763585810728,3.13,133.27,133.2,3.24]
[1763585810934,3.13,133.27,133.2,10.0042]
[1763585811133,3.13,133.27,133.2,3.24]
[1763585811538,9.8909,133.27,133.21,6.7637]
[1763585811742,0.05751043,133.25,133.22,0.04754086]
[1763585812542,0.05751043,133.25,133.23,3.24]
[1763585813543,0.05751043,133.25,133.22,3.28754086]
[1763585816546,3.13,133.24,133.22,0.04754086]
[1763585816747,3.13,133.24,133.14,3.24]
[1763585817147,6.764,133.21,133.15,6.7668]
[1763585817347,6.764,133.21,133.14,3.24]
[1763585817539,3.13,133.23,133.14,3.24]
[1763585817743,0.0510634,133.2,133.17,0.05112787]
[1763585817948,3.1810634,133.2,133.17,0.05112787]
[1763585819548,3.13,133.19,133.17,0.05112787]
[1763585819846,0.0510634,133.2,133.17,0.05112787]
[1763585820050,3.1810634,133.2,133.17,0.05112787]
[1763585820447,0.0510634,133.2,133.17,0.05112787]
[1763585820655,0.0510634,133.2,133.17,3.29112787]
[1763585820953,0.0510634,133.2,133.17,10.05682787]
[1763585821155,0.0510634,133.2,133.18,3.24]
[1763585821942,108.2761,133.3,133.2,3.24]
[1763585822146,3.13,133.29,133.2,3.24]
[1763585822450,3.13,133.26,133.2,3.24]
[1763585822949,3.18014522,133.24,133.22,0.05015494]
[1763585823254,0.05014522,133.24,133.22,0.05015494]
[1763585824455,3.18014522,133.24,133.22,0.05015494]
[1763585824656,3.13,133.22,133.13,3.24]
[1763585825156,6.7646,133.2,133.14,6.767]
[1763585825351,3.13,133.2,133.13,3.24]
[1763585825546,3.13,133.2,133.1,3.24]
[1763585825746,3.1790879,133.18,133.15,0.05305647]
[1763585826759,3.13,133.16,133.15,0.05305647]
[1763585827559,3.13,133.15,133.1,3.24]
[1763585828553,0.05011244,133.14,133.11,0.05626729]
[1763585829056,3.32011244,133.14,133.11,0.05626729]
[1763585829361,10.08781244,133.14,133.11,0.05626729]
[1763585829960,0.05011244,133.14,133.11,3.10626729]
[1763585830658,15.98,133.2,133.13,3.05]
[1763585830850,115.77944607,133.26,133.16,3.05]
[1763585831055,6.7632,133.23,133.16,9.8162]
[1763585831255,3.27,133.24,133.16,9.8162]
[1763585831560,6.7629,133.23,133.17,6.7658]
[1763585831859,3.32462781,133.21,133.19,0.05630398]
[1763585834256,0.05462781,133.21,133.19,0.05630398]
[1763585834450,0.05462781,133.21,133.19,3.10630398]
[1763585834856,0.05462781,133.21,133.19,9.87100398]
[1763585835159,15.98,133.25,133.2,3.05]
[1763585835356,10.0303,133.28,133.2,3.05]
[1763585835558,3.27,133.28,133.2,3.05]
[1763585836054,6.7609,133.27,133.21,6.7637]
[1763585836251,0.05667925,133.25,133.23,0.05245075]
[1763585841259,10.08867925,133.25,133.23,0.05245075]
[1763585841455,10.08867925,133.25,133.2,3.05]
[1763585841456,3.27,133.24,133.16,3.05]
[1763585842067,6.7634,133.22,133.16,3.05]
[1763585842564,0.05380186,133.2,133.18,0.0553994]
[1763585844559,0.05380186,133.2,133.18,3.1053994]
[1763585844754,0.05380186,133.2,133.18,0.0553994]
[1763585846362,0.05380186,133.2,133.18,3.2153994]
[1763585846870,0.05380186,133.2,133.18,0.0553994]
[1763585848071,3.08,133.19,133.12,3.16]
[1763585848271,3.08,133.18,133.12,3.16]
[1763585848466,6.767,133.15,133.09,3.16]
[1763585849267,0.0508059,133.13,133.11,0.05574179]
[1763585850069,0.0508059,133.13,133.11,3.21574179]
[1763585850971,0.0008059,133.13,133.12,3.16]
[1763585851174,105.1973,133.24,133.14,3.16]
[1763585851375,3.08,133.23,133.14,3.16]
[1763585851873,6.764,133.21,133.15,6.7667]
[1763585852075,0.05611957,133.19,133.17,0.04953231]
[1763585852768,3.13611957,133.19,133.17,0.04953231]
[1763585852964,9.90121957,133.19,133.17,0.04953231]
[1763585853270,3.08,133.18,133.11,3.16]
[1763585853469,9.8455,133.18,133.11,3.16]
[1763585854276,0.05304391,133.16,133.13,3.21345581]
[1763585854877,0.05304391,133.16,133.13,9.98115581]
[1763585855272,0.05304391,133.16,133.13,3.21345581]
[1763585855476,3.13304391,133.16,133.13,0.05345581]
[1763585855677,9.89954391,133.16,133.13,0.05345581]
[1763585855980,3.08,133.15,133.13,0.05345581]
[1763585856278,9.8471,133.15,133.13,0.05345581]
[1763585856776,3.08,133.14,133.13,0.05345581]
[1763585856976,0.05304391,133.16,133.13,3.21345581]
[1763585857168,3.13304391,133.16,133.13,0.05345581]
[1763585857865,9.89954391,133.16,133.13,0.05345581]
[1763585858067,9.89954391,133.16,133.07,121.2791]
[1763585858068,3.24,133.15,133.06,3.34]
[1763585858580,6.7685,133.12,133.06,10.1114]
[1763585858779,3.24,133.13,133.06,3.34]
[1763585859171,3.24,133.1,133.08,0.0542116]
[1763585859375,3.29090894,133.1,133.08,0.0542116]
[1763585859984,10.06050894,133.1,133.08,0.0542116]
[1763585860474,3.29090894,133.1,133.08,0.0542116]
[1763585862073,3.24,133.09,133.03,3.34]
[1763585862269,3.24,133.05,132.97,3.34]
[1763585862472,10.02513961,133.04,132.97,3.34]
[1763585862777,3.24,133.04,132.97,3.34]
[1763585863274,0.05458874,133.02,132.99,3.38741842]
[1763585863679,0.05458874,133.02,132.99,0.04741842]
[1763585864485,10.06828874,133.02,132.99,0.04741842]
[1763585865373,0.05458874,133.02,132.99,3.38741842]
[1763585867482,0.05458874,133.02,132.99,10.16221842]
[1763585867781,3.24,133.09,133.0,3.34]
[1763585868081,6.7707,133.08,133.02,6.7734]
[1763585868382,6.7707,133.08,133.03,3.34]
[1763585868770,0.04892831,133.07,133.04,3.39605857]
[1763585869483,0.04892831,133.07,133.04,0.05605857]
[1763585869782,3.24,133.06,133.04,0.05605857]
[1763585869969,3.24,133.05,132.98,3.34]
[1763585870174,108.5855,133.05,132.98,3.34]
[1763585870479,124.5455,133.05,132.98,3.34]
[1763585870675,72.07,133.11,132.98,3.34]
[1763585870876,6.78513961,133.18,133.07,105.3236]
[1763585871076,0.04917105,133.14,133.11,0.05140217]
[1763585871283,3.24,133.17,133.08,3.34]
[1763585871482,0.05453596,133.14,133.11,0.05054194]
[1763585871780,3.29453596,133.14,133.11,0.05054194]
[1763585871980,0.05453596,133.14,133.11,0.05054194]
[1763585872174,0.05453596,133.14,133.11,3.39054194]
[1763585872482,3.24,133.21,133.13,3.34]
[1763585873485,0.0534435,133.18,133.16,0.05769207]
[1763585875485,3.2934435,133.18,133.16,0.05769207]
[1763585875975,0.0534435,133.18,133.16,0.05769207]
[1763585880387,0.0534435,133.18,133.16,3.39769207]
[1763585880682,3.2934435,133.18,133.16,0.05769207]
[1763585880881,0.0534435,133.18,133.16,0.05769207]
[1763585881784,3.2934435,133.18,133.16,0.05769207]
[1763585882386,10.0590435,133.18,133.16,0.05769207]
[1763585882884,3.24,133.17,133.16,0.05769207]
[1763585883084,3.2934435,133.18,133.16,0.05769207]
[1763585883586,0.0534435,133.18,133.16,3.39769207]
[1763585883780,3.24,133.23,133.16,3.39769207]
[1763585884392,10.0056,133.18,133.16,0.05769207]
[1763585884587,10.0056,133.18,133.13,3.34]
[1763585884785,6.81768594,133.17,133.14,0.05068225]
[1763585884982,3.29168594,133.17,133.14,0.05068225]
[1763585885280,3.24,133.16,133.14,0.05068225]
[1763585885486,3.24,133.16,133.09,3.34]
[1763585885487,3.24,133.15,133.09,3.34]
[1763585885682,10.02513961,133.19,133.09,3.34]
[1763585886088,6.7657,133.18,133.12,3.34]
[1763585886391,105.223,133.21,133.12,3.34]
[1763585886688,0.05622357,133.16,133.14,3.39283739]
[1763585886889,0.05240624,133.16,133.14,3.39283739]
[1763585887495,0.05240624,133.16,133.14,0.05283739]
[1763585888086,0.05240624,133.16,133.14,3.38283739]
[1763585889490,3.19,133.29,133.18,3.33]
[1763585889684,3.19,133.29,133.19,3.33]
[1763585890085,3.19,133.28,133.19,3.33]
[1763585890279,3.19,133.26,133.19,3.33]
[1763585890690,0.05738101,133.24,133.19,3.33]
[1763585890888,0.05738101,133.24,133.21,0.05449584]
[1763585891092,3.24738101,133.24,133.21,0.05449584]
[1763585891691,0.05738101,133.24,133.21,0.05449584]
[1763585891889,0.05738101,133.24,133.21,3.38449584]
[1763585892393,0.05738101,133.24,133.21,10.14809584]
[1763585892995,0.05738101,133.24,133.22,3.33]
[1763585893296,0.05738101,133.24,133.23,3.33]
[1763585893491,6.759,133.31,133.23,3.33]
[1763585893689,6.759,133.31,133.21,121.26519584]
[1763585893690,9.97513961,133.32,133.24,10.0921]
[1763585894494,3.24226478,133.29,133.27,0.05682965]
[1763585894887,3.19,133.28,133.21,3.33]
[1763585895898,0.04914542,133.26,133.23,0.04938125]
[1763585896097,0.04914542,133.26,133.23,3.37938125]
[1763585897489,0.04914542,133.26,133.25,3.33]
[1763585899498,6.7591,133.31,133.25,3.33]
[1763585900196,6.7596,133.3,133.25,3.33]
[1763585900501,3.23830739,133.29,133.26,0.0577347]
[1763585901601,3.19,133.27,133.18,3.33]
[1763585901898,3.19,133.25,133.18,3.33]
[1763585902494,0.04798428,133.23,133.21,3.33]
[1763585904396,0.04798428,133.23,133.21,10.0937]
[1763585904603,0.04798428,133.23,133.22,3.33]
[1763585906097,3.36,133.31,133.23,3.04]
[1763585906598,10.1191,133.31,133.25,6.7617]
[1763585907001,0.04843368,133.29,133.27,0.04813057]
[1763585908602,0.04843368,133.29,133.27,3.08813057]
[1763585909504,0.04843368,133.29,133.27,9.84883057]
[1763585910103,0.04843368,133.29,133.28,3.04]
[1763585910296,10.1171,133.35,133.29,9.7996]
[1763585910703,10.1171,133.35,133.29,3.04]
[1763585910905,3.36,133.38,133.31,3.04]
[1763585911400,3.36,133.38,133.28,105.1577]
[1763585911401,3.36,133.35,133.33,0.05622098]
[1763585912306,3.36,133.34,133.33,0.05622098]
[1763585913004,3.40786254,133.36,133.33,0.05622098]
[1763585913702,10.16416254,133.36,133.33,0.05622098]
[1763585913899,3.36,133.41,133.34,3.04]
[1763585914097,3.36,133.43,133.35,3.04]
[1763585914502,3.36,133.47,133.37,3.04]
[1763585914695,26.10513961,133.47,133.37,3.04]
[1763585914895,131.11943961,133.47,133.38,3.04]
[1763585915101,3.41241153,133.43,133.41,0.05511042]
[1763585915910,10.16531153,133.43,133.41,0.05511042]
[1763585916100,3.36,133.42,133.34,3.04]
[1763585917003,0.05182487,133.39,133.37,0.05448376]
[1763585917208,0.05182487,133.39,133.37,3.09448376]
[1763585918803,0.05182487,133.39,133.37,0.05448376]
[1763585919896,3.34182487,133.39,133.37,0.05448376]
[1763585921011,0.05182487,133.39,133.37,0.05448376]
[1763585922206,0.05182487,133.39,133.37,3.31448376]
[1763585922404,0.00182487,133.39,133.37,3.31448376]
[1763585924408,0.00182487,133.39,133.37,0.05448376]
[1763585924909,0.00182487,133.39,133.37,3.31448376]
[1763585926210,0.00182487,133.39,133.37,0.05448376]
[1763585928210,3.29182487,133.39,133.37,0.05448376]
[1763585928615,3.29182487,133.39,133.31,10.0186]
[1763585929217,6.7563,133.36,133.31,3.26]
[1763585929514,0.04785638,133.35,133.32,0.05481819]
[1763585930016,108.412,133.33,133.25,3.26]
[1763585930211,3.29,133.3,133.21,3.26]
[1763585930407,3.29,133.3,133.24,3.26]
[1763585931016,0.04809669,133.28,133.26,0.0487998]
[1763585932220,3.33809669,133.28,133.26,0.0487998]
[1763585932817,0.04809669,133.28,133.26,0.0487998]
[1763585933007,3.33809669,133.28,133.26,0.0487998]
[1763585933611,10.09849669,133.28,133.26,0.0487998]
[1763585933918,3.29,133.27,133.26,0.0487998]
[1763585934121,10.0517,133.26,133.21,3.26]
[1763585934718,10.052,133.25,133.19,6.7647]
[1763585934919,3.29,133.25,133.18,3.26]
[1763585935128,3.29,133.22,133.2,0.04774776]
[1763585935622,3.29,133.21,133.2,0.04774776]
[1763585936013,3.29,133.22,133.2,0.04774776]
[1763585937529,10.0535,133.22,133.2,0.04774776]
[1763585940223,3.29,133.22,133.2,0.04774776]
[1763585940527,0.05050669,133.23,133.2,3.30774776]
[1763585940720,0.05050669,133.23,133.2,0.04774776]
[1763585940721,3.34050669,133.23,133.2,0.04774776]
[1763585941324,3.29,133.22,133.2,0.04774776]
[1763585941526,3.29,133.2,133.13,3.26]